[Event "6th Uppsala Young Champions 2019"]
[Site "Uppsala"]
[Date "2019.10.25"]
[Round "1.1"]
[White "Mihajlov, Sebastian"]
[Black "Carlsson, Ludvig"]
[Result "1-0"]
[ECO "A40"]
[WhiteElo "2387"]
[BlackElo "2066"]
[Annotator "NA"]
[PlyCount "43"]
[EventDate "2019.10.25"]
[EventType "swiss"]
[EventCountry "SWE"]
[SourceTitle "playchess.com"]
[Source "ChessBase"]
[SourceQuality "1"]
[TimeControl "5400+30"]

1. d4 {[%emt 0:01:32]} e6 {[%emt 0:01:05]} 2. c4 {[%emt 0:00:04]} b6 {[%emt 0:00:07]} 3. Nc3 {[%emt 0:00:42]} Bb7 {[%emt 0:00:07]} 4. a3 {[%emt 0:00:08]} f5 {[%emt 0:02:30]} 5. d5 {[%emt 0:04:02]} Nf6 {[%emt 0:06:11]} 6. Nf3 {[%emt 0:06:53]} Bd6 {[%emt 0:04:12]} 7. g3 {[%emt 0:04:28]} O-O {[%emt 0:09:36]} 8. Bg2 {[%emt 0:00:11]} Ne4 {[%emt 0:00:07]} 9. Nxe4 {[%emt 0:01:11]} fxe4 {[%emt 0:00:08]} 10. Ng5 {[%emt 0:00:05]} b5 {[%emt 0:10:04]} 11. Bxe4 {[%emt 0:03:54]} h6 {[%emt 0:00:44]} 12. dxe6 {[%emt 0:01:22]} Nc6 {[%emt 0:00:17]} 13. cxb5 {[%emt 0:01:12]} hxg5 {[%emt 0:00:32]} 14. bxc6 {[%emt 0:00:06]} Bxc6 {[%emt 0:00:10]} 15. Qb3 {[%emt 0:03:23]} Rb8 {[%emt 0:01:09]} 16. Qc4 {[%emt 0:00:14]} Bb5 {[%emt 0:02:40]} 17. Qd5 {[%emt 0:00:15]} Qf6 {[%emt 0:01:16]} 18. exd7+ {[%emt 0:00:24]} Kh8 {[%emt 0:00:10]} 19. Be3 {[%emt 0:04:13]} Bxe2 {[%emt 0:05:34]} 20. h4 {[%emt 0:00:30]} Bh5 {[%emt 0:03:05]} 21. hxg5 {[%emt 0:00:10]} Qxb2 {[%emt 0:00:06]} 22. Rxh5# {[%emt 1:06:01]} 1-0

[Event "6th Uppsala Young Champions 2019"]
[Site "Uppsala"]
[Date "2019.10.25"]
[Round "1.5"]
[White "Sorensen, Hampus"]
[Black "Falkevall, Axel"]
[Result "0-1"]
[ECO "D30"]
[WhiteElo "2330"]
[BlackElo "2036"]
[Annotator "RC"]
[PlyCount "64"]
[EventDate "2019.10.25"]
[EventType "swiss"]
[EventCountry "SWE"]
[SourceTitle "playchess.com"]
[Source "ChessBase"]
[SourceQuality "1"]
[TimeControl "5400+30"]

1. d4 {[%emt 0:00:30]} e6 {[%emt 0:00:00]} 2. c4 {[%emt 0:00:00]} Nf6 {[%emt 0:00:00]} 3. Nf3 {[%emt 0:00:19]} d5 {[%emt 0:00:01]} 4. Bg5 {[%emt 0:00:22]} Bb4+ {[%emt 0:00:08]} 5. Nbd2 {[%emt 0:02:19]} dxc4 {[%emt 0:00:15]} 6. Qa4+ {[%emt 0:01:18]} Nc6 {[%emt 0:00:17]} 7. e3 {[%emt 0:00:46]} Qd5 {[%emt 0:01:11]} 8. Bxf6 {[%emt 0:01:24]} gxf6 {[%emt 0:00:02]} 9. a3 {[%emt 0:04:00]} b5 {[%emt 0:03:27]} 10. Qc2 {[%emt 0:00:45]} Bxd2+ {[%emt 0:02:48]} 11. Nxd2 {[%emt 0:01:38]} Bb7 {[%emt 0:04:13]} 12. Rg1 {[%emt 0:17:05]} f5 {[%emt 0:13:24]} 13. g4 {[%emt 0:03:35]} fxg4 {[%emt 0:06:21]} 14. Bg2 {[%emt 0:01:24]} Qf5 {[%emt 0:07:01]} 15. Be4 {[%emt 0:01:27]} Qh5 {[%emt 0:03:35]} 16. b3 {[%emt 0:03:41]} f5 {[%emt 0:07:55]} 17. Bg2 {[%emt 0:02:45]} Qxh2 {[%emt 0:04:22]} 18. O-O-O {[%emt 0:01:43]} Nxd4 {[%emt 0:07:40]} 19. exd4 {[%emt 0:03:34]} Bxg2 {[%emt 0:00:12]} 20. bxc4 {[%emt 0:00:03]} bxc4 {[%emt 0:05:07]} 21. Nxc4 {[%emt 0:02:18]} O-O {[%emt 0:02:30]} 22. Qd2 {[%emt 0:00:31]} Bd5 {[%emt 0:06:07]} 23. Ne5 {[%emt 0:00:33]} Kh8 {[%emt 0:07:05]} 24. Qg5 {[%emt 0:00:04]} Be4 {[%emt 0:02:42]} 25. Kb2 {[%emt 0:02:54]} c5 {[%emt 0:06:09]} 26. Qe7 {[%emt 0:02:16]} cxd4 {[%emt 0:02:27]} 27. Qc7 {[%emt 0:01:16]} Qh5 {[%emt 0:02:55]} 28. f3 {[%emt 0:01:26]} Rac8 {[%emt 0:00:59]} 29. Qd6 {[%emt 0:00:38]} Bd5 {[%emt 0:02:18]} 30. Nd7 {[%emt 0:02:01]} f4 {[%emt 0:01:20]} 31. Nxf8 {[%emt 0:00:54]} Qh2+ {[%emt 0:00:08]} 32. Ka1 {[%emt 0:00:08]} Qa2# {[%emt 0:00:06]} 0-1

[Event "6th Uppsala Young Champions 2019"]
[Site "Uppsala"]
[Date "2019.10.25"]
[Round "1.10"]
[White "Narva, David"]
[Black "Thorhallsson, Simon"]
[Result "1-0"]
[ECO "B50"]
[WhiteElo "1979"]
[BlackElo "2190"]
[Annotator "RC"]
[PlyCount "101"]
[EventDate "2019.10.25"]
[EventType "swiss"]
[EventCountry "SWE"]
[SourceTitle "playchess.com"]
[Source "ChessBase"]
[SourceQuality "1"]
[TimeControl "5400+30"]

1. e4 {[%emt 0:00:00]} c5 {[%emt 0:00:05]} 2. Nf3 {[%emt 0:00:00]} d6 {[%emt 0:00:08]} 3. Bc4 {[%emt 0:00:00]} Nf6 {[%emt 0:00:24]} 4. c3 {[%emt 0:00:00]} e6 {[%emt 0:02:42]} 5. d3 {[%emt 0:00:00]} Nc6 {[%emt 0:01:18]} 6. Bb3 {[%emt 0:00:41]} Be7 {[%emt 0:02:26]} 7. O-O {[%emt 0:00:13]} d5 {[%emt 0:06:36]} 8. e5 {[%emt 0:00:12]} Nd7 {[%emt 0:00:36]} 9. d4 {[%emt 0:00:06]} O-O {[%emt 0:07:28]} 10. Re1 {[%emt 0:03:44]} Re8 {[%emt 0:08:26]} 11. Nbd2 {[%emt 0:04:33]} cxd4 {[%emt 0:03:25]} 12. cxd4 {[%emt 0:00:06]} b6 {[%emt 0:03:30]} 13. Nf1 {[%emt 0:03:49]} Ba6 {[%emt 0:02:52]} 14. a3 {[%emt 0:01:26]} Rc8 {[%emt 0:02:12]} 15. Ba2 {[%emt 0:07:51]} Na5 {[%emt 0:03:09]} 16. Ne3 {[%emt 0:05:00]} Nc4 {[%emt 0:08:08]} 17. Nxc4 {[%emt 0:00:56]} Bxc4 {[%emt 0:00:51]} 18. Bb1 {[%emt 0:01:29]} Nf8 {[%emt 0:02:57]} 19. Nd2 {[%emt 0:10:27]} Bb5 {[%emt 0:03:34]} 20. b4 {[%emt 0:05:32]} Bc6 {[%emt 0:11:24]} 21. Bd3 {[%emt 0:03:41]} Qd7 {[%emt 0:01:01]} 22. Qe2 {[%emt 0:01:24]} Ba4 {[%emt 0:01:21]} 23. Nf3 {[%emt 0:03:11]} Red8 {[%emt 0:02:27]} 24. Bd2 {[%emt 0:12:22]} b5 {[%emt 0:01:48]} 25. Ng5 {[%emt 0:04:13]} h6 {[%emt 0:04:19]} 26. Nh3 {[%emt 0:02:56]} f5 {[%emt 0:03:21]} 27. exf6 {[%emt 0:03:24]} Bxf6 {[%emt 0:00:16]} 28. Qg4 {[%emt 0:03:56]} Kh8 {[%emt 0:02:19]} 29. Rac1 {[%emt 0:09:03]} Rxc1 {[%emt 0:00:27]} 30. Rxc1 {[%emt 0:05:20]} Rc8 {[%emt 0:00:07]} 31. Rc5 {[%emt 0:01:23]} Be7 {[%emt 0:03:24]} 32. Rxc8 {[%emt 0:01:44]} Qxc8 {[%emt 0:00:10]} 33. Nf4 {[%emt 0:00:14]} Bc2 {[%emt 0:02:15]} 34. Nh5 {[%emt 0:02:41]} g5 {[%emt 0:05:39]} 35. Qe2 {[%emt 0:01:32]} Kg8 {[%emt 0:02:55]} 36. Qe5 {[%emt 0:01:25]} Kf7 {[%emt 0:00:06]} 37. Bxb5 {[%emt 0:01:07]} Nd7 {[%emt 0:01:24]} 38. Qg7+ {[%emt 0:00:17]} Ke8 {[%emt 0:00:12]} 39. Qg8+ {[%emt 0:00:43]} Bf8 {[%emt 0:00:14]} 40. Nf6+ {[%emt 0:00:37]} Ke7 {[%emt 0:00:15]} 41. Nxd7 {[%emt 0:01:20]} a6 {[%emt 0:00:54]} 42. Nxf8 {[%emt 0:00:27]} axb5 {[%emt 0:00:36]} 43. Ng6+ {[%emt 0:00:10]} Kd7 {[%emt 0:00:12]} 44. Qg7+ {[%emt 0:00:21]} Kd6 {[%emt 0:00:30]} 45. Qe7+ {[%emt 0:00:52]} Kc6 {[%emt 0:00:08]} 46. Qc5+ {[%emt 0:01:10]} Kb7 {[%emt 0:00:13]} 47. Qxb5+ {[%emt 0:00:09]} Ka8 {[%emt 0:00:07]} 48. Ne5 {[%emt 0:00:40]} Be4 {[%emt 0:00:15]} 49. Nd7 {[%emt 0:00:49]} Ka7 {[%emt 0:00:33]} 50. Qc5+ {[%emt 0:00:42]} Kb7 {[%emt 0:00:15]} 51. Qxc8+ {[%emt 0:01:32]} 1-0

[Event "6th Uppsala Young Champions 2019"]
[Site "Uppsala"]
[Date "2019.10.25"]
[Round "1.13"]
[White "Palozza, Christian"]
[Black "Soderstrom, Adrian"]
[Result "1-0"]
[ECO "E62"]
[WhiteElo "2187"]
[BlackElo "1960"]
[Annotator "RC"]
[PlyCount "89"]
[EventDate "2019.10.25"]
[EventType "swiss"]
[EventCountry "SWE"]
[SourceTitle "playchess.com"]
[Source "ChessBase"]
[SourceQuality "1"]
[TimeControl "5400+30"]

1. d4 {[%emt 0:00:00]} Nf6 {[%emt 0:00:00]} 2. c4 {[%emt 0:00:00]} g6 {[%emt 0:00:00]} 3. Nf3 {[%emt 0:00:04]} Bg7 {[%emt 0:00:17]} 4. g3 {[%emt 0:00:06]} O-O {[%emt 0:00:07]} 5. Bg2 {[%emt 0:00:04]} d6 {[%emt 0:00:04]} 6. Nc3 {[%emt 0:00:11]} Nc6 {[%emt 0:00:04]} 7. O-O {[%emt 0:00:07]} e5 {[%emt 0:00:21]} 8. dxe5 {[%emt 0:01:50]} dxe5 {[%emt 0:00:25]} 9. Qxd8 {[%emt 0:00:07]} Rxd8 {[%emt 0:00:03]} 10. Bg5 {[%emt 0:00:07]} Be6 {[%emt 0:00:12]} 11. Nd2 {[%emt 0:01:38]} h6 {[%emt 0:03:22]} 12. Bxf6 {[%emt 0:00:06]} Bxf6 {[%emt 0:00:01]} 13. Rfd1 {[%emt 0:11:36]} Bg5 {[%emt 0:13:53]} 14. e3 {[%emt 0:00:44]} Bg4 {[%emt 0:00:31]} 15. Nf3 {[%emt 0:07:55]} Rxd1+ {[%emt 0:02:13]} 16. Rxd1 {[%emt 0:01:01]} Rd8 {[%emt 0:00:28]} 17. Rxd8+ {[%emt 0:06:24]} Bxd8 {[%emt 0:00:35]} 18. Nd2 {[%emt 0:00:08]} Be6 {[%emt 0:07:53]} 19. Kf1 {[%emt 0:01:34]} Kf8 {[%emt 0:01:23]} 20. a3 {[%emt 0:02:01]} Na5 {[%emt 0:05:24]} 21. Bd5 {[%emt 0:02:24]} Ke7 {[%emt 0:09:22]} 22. Ke2 Bxd5 {[%emt 0:00:30]} 23. cxd5 b6 {[%emt 0:00:30]} 24. b4 Nb7 {[%emt 0:00:30]} 25. Nc4 f6 {[%emt 0:00:30]} 26. Nb5 a6 {[%emt 0:00:30]} 27. Na7 Nd6 {[%emt 0:00:30]} 28. Nc6+ Kd7 {[%emt 0:00:30]} 29. Nxd6 cxd6 {[%emt 0:00:30]} 30. Nb8+ Kc8 {[%emt 0:00:30]} 31. Nc6 f5 {[%emt 0:00:30]} 32. a4 Bf6 {[%emt 0:00:30]} 33. e4 Kc7 {[%emt 0:00:30]} 34. Ke3 fxe4 {[%emt 0:00:30]} 35. Kxe4 Kd7 {[%emt 0:00:30]} 36. Nb8+ Kc8 {[%emt 0:00:30]} 37. Nxa6 b5 {[%emt 0:00:30]} 38. axb5 Kb7 {[%emt 0:00:30]} 39. Nc5+ dxc5 {[%emt 0:00:30]} 40. bxc5 Kc7 {[%emt 0:00:30]} 41. d6+ Kd7 {[%emt 0:00:30]} 42. Kd5 e4 {[%emt 0:00:30]} 43. c6+ Kc8 {[%emt 0:00:30]} 44. b6 h5 {[%emt 0:00:30]} 45. c7 1-0

[Event "6th Uppsala Young Champions 2019"]
[Site "Uppsala"]
[Date "2019.10.25"]
[Round "1.15"]
[White "Papunidi, Matvey"]
[Black "Dingertz, Erik"]
[Result "1-0"]
[ECO "A29"]
[WhiteElo "2083"]
[BlackElo "1908"]
[Annotator "NA RC"]
[PlyCount "67"]
[EventDate "2019.10.25"]
[EventType "swiss"]
[EventCountry "SWE"]
[SourceTitle "playchess.com"]
[Source "ChessBase"]
[SourceQuality "1"]
[TimeControl "5400+30"]

1. c4 {[%emt 1:30:30]} e5 {[%emt 1:30:30]} 2. Nc3 {[%emt 0:00:30]} Nf6 {[%emt 0:00:30]} 3. g3 {[%emt 0:00:30]} d5 {[%emt 0:00:30]} 4. cxd5 {[%emt 0:00:30]} Nxd5 {[%emt 0:00:30]} 5. Bg2 {[%emt 0:00:30]} Nb6 {[%emt 0:00:30]} 6. Nf3 {[%emt 0:00:30]} Nc6 {[%emt 0:00:30]} 7. O-O {[%emt 0:00:30]} Be6 {[%emt 0:00:30]} 8. d3 {[%emt 0:00:30]} Be7 {[%emt 0:00:30]} 9. Be3 {[%emt 0:00:30]} O-O {[%emt 0:00:30]} 10. Qd2 {[%emt 0:00:30]} Nd5 {[%emt 0:00:30]} 11. Nxd5 {[%emt 0:00:30]} Bxd5 {[%emt 0:00:30]} 12. Rfc1 {[%emt 0:00:30]} f5 {[%emt 0:00:30]} 13. Bc5 {[%emt 0:00:30]} Re8 {[%emt 0:00:30]} 14. Bxe7 {[%emt 0:00:30]} Qxe7 {[%emt 0:00:30]} 15. Qc3 {[%emt 0:00:30]} Rad8 {[%emt 0:00:30]} 16. Nh4 {[%emt 0:00:30]} Nd4 {[%emt 0:00:30]} 17. Bxd5+ {[%emt 0:00:30]} Rxd5 {[%emt 0:00:30]} 18. Kf1 {[%emt 0:00:30]} g5 {[%emt 0:00:30]} 19. Nxf5 {[%emt 0:00:30]} Nxf5 {[%emt 0:00:30]} 20. e4 {[%emt 0:00:30]} Nxg3+ {[%emt 0:00:30]} 21. hxg3 {[%emt 0:00:30]} Rd7 {[%emt 0:00:30]} 22. Qb3+ {[%emt 0:00:30]} Qf7 {[%emt 0:00:30]} 23. Qxb7 {[%emt 0:00:30]} Rf8 {[%emt 0:00:30]} 24. Qxa7 {[%emt 0:00:30]} Rd4 {[%emt 0:00:30]} 25. Rc2 {[%emt 0:00:30]} Qf3 {[%emt 0:00:30]} 26. Kg1 {[%emt 0:00:30]} Rxd3 {[%emt 0:00:30]} 27. Rf1 {[%emt 0:00:30]} Rd1 {[%emt 0:00:30]} 28. Qa6 {[%emt 0:00:30]} Rfd8 {[%emt 0:00:30]} 29. Qe6+ {[%emt 0:00:30]} Kf8 {[%emt 0:00:30]} 30. Qf5+ {[%emt 0:00:30]} Qxf5 {[%emt 0:00:30]} 31. exf5 {[%emt 0:00:30]} R1d2 {[%emt 0:00:30]} 32. Rxc7 {[%emt 0:00:30]} Rxb2 {[%emt 0:00:30]} 33. Rxh7 {[%emt 0:00:30]} Rxa2 {[%emt 0:00:30]} 34. Rh8+ {[%emt 0:00:30]} 1-0

[Event "6th Uppsala Young Champions 2019"]
[Site "Uppsala"]
[Date "2019.10.26"]
[Round "2.1"]
[White "Apol, Luitjen Akselsson"]
[Black "Mihajlov, Sebastian"]
[Result "0-1"]
[ECO "B32"]
[WhiteElo "2129"]
[BlackElo "2387"]
[Annotator "NA"]
[PlyCount "118"]
[EventDate "2019.10.25"]
[EventType "swiss"]
[EventCountry "SWE"]
[SourceTitle "playchess.com"]
[Source "ChessBase"]
[SourceQuality "1"]
[TimeControl "5400+30"]

{[%evp 8,86,20,22,21,12,19,24,38,22,10,0,-6,0,13,-3,13,-56,-39,-80,-12,-15,-11,-10,-42,-10,-8,-29,21,-25,18,-36,32767,32767,-23,-39,-45,32767,32767,-37,32767,-63,32767,-64,-16,-66,-58,32767,32767,32767,-66,-75,-61,-56,32767,-53,-62,32767,-51,-59,-61,32767,-81,-231,-236,-237,-247,-244,32767,-220,-228,32767,32767,32767,32767,-259,-268,32767,32767,32767,-306]} 1. e4 {[%emt 0:00:00]} c5 {[%emt 0:08:37]} 2. Nf3 {[%emt 0:00:13]} Nc6 {[%emt 0:00:05]} 3. d4 {[%emt 0:00:28]} cxd4 {[%emt 0:00:04]} 4. Nxd4 {[%emt 0:00:06]} e5 {[%emt 0:00:04]} 5. Nb5 {[%emt 0:00:10]} d6 {[%emt 0:00:04]} 6. N1c3 {[%emt 0:01:05]} a6 {[%emt 0:00:26]} 7. Na3 {[%emt 0:00:07]} Be6 {[%emt 0:00:13]} 8. Be2 {[%emt 0:11:36]} Nf6 {[%emt 0:04:15]} 9. Bg5 {[%emt 0:00:25]} Be7 {[%emt 0:02:10]} 10. Bxf6 {[%emt 0:11:25]} Bxf6 {[%emt 0:00:11]} 11. Nc4 {[%emt 0:02:02]} Nd4 {[%emt 0:02:14]} 12. a4 {[%emt 0:02:30]} ({Better is} 12. Ne3 $11) 12... Rc8 {[%emt 0:01:12]} 13. Ne3 {[%emt 0:01:37]} Bg5 {[%emt 0:06:29]} (13... Qb6 $5 {[%cal Rb6b2]} 14. Rb1 Nxe2 15. Kxe2 Bg5 $15) 14. Bd3 {[%emt 0:05:00]} Bxe3 {[%emt 0:14:39]} 15. fxe3 {[%emt 0:00:08]} Nc6 {[%emt 0:00:02]} 16. O-O {[%emt 0:05:53]} O-O {[%emt 0:01:20]} 17. Qd2 {[%emt 0:10:11]} Qc7 {[%emt 0:07:46]} 18. Rad1 {[%emt 0:03:36]} Rfd8 {[%emt 0:00:27]} 19. Kh1 {[%emt 0:03:05]} Nb4 {[%emt 0:01:59]} 20. Nd5 {[%emt 0:09:04]} Bxd5 {[%emt 0:01:37]} 21. Qxb4 {[%emt 0:00:17]} Be6 {[%emt 0:01:22]} 22. Qe1 {[%emt 0:02:31]} Qc6 {[%emt 0:01:46]} 23. b3 {[%emt 0:01:35]} d5 {[%emt 0:04:12]} 24. Qh4 {[%emt 0:01:17]} (24. exd5 $11 Bxd5 25. Qf2) 24... h6 {[%emt 0:00:13]} 25. h3 {[%emt 0:01:31]} (25. exd5 $11 Bxd5 26. Be4) 25... Rd6 {[%emt 0:01:20]} 26. Rd2 {[%emt 0:01:53]} d4 {[%emt 0:06:27]} 27. exd4 {[%emt 0:00:49]} Rxd4 {[%emt 0:00:05]} 28. Qg3 {[%emt 0:00:25]} Qc3 {[%emt 0:01:30]} 29. Rfd1 {[%emt 0:00:58]} Rd6 {[%emt 0:03:47]} 30. Qf2 {[%emt 0:02:47]} Rcd8 {[%emt 0:00:25]} 31. Qf1 {[%emt 0:01:26]} f6 {[%emt 0:05:02]} 32. Qf3 {[%emt 0:01:50]} Bf7 {[%emt 0:00:59]} 33. Qe2 {[%emt 0:02:12]} Rd4 {[%emt 0:00:58]} 34. Qf3 {[%emt 0:03:06]} Kf8 {[%emt 0:00:54]} 35. Qg3 $2 {[%emt 0:01:51]} (35. Kg1 $15) 35... Bh5 {[%emt 0:00:33]} 36. Qe3 {[%emt 0:02:28]} Bxd1 {[%emt 0:00:08]} 37. Rxd1 {[%emt 0:00:01]} b5 {[%emt 0:02:39]} 38. axb5 {[%emt 0:00:15]} axb5 {[%emt 0:00:05]} 39. Rf1 {[%emt 0:00:14]} Qc6 {[%emt 0:03:20]} 40. Ra1 {[%emt 0:01:37]} Ra8 {[%emt 0:00:08]} 41. Qe1 {[%emt 0:01:41]} Rxa1 {[%emt 0:02:15]} 42. Qxa1 {[%emt 0:00:09]} Qb6 {[%emt 0:00:08]} 43. Qc3 {[%emt 0:01:36]} g6 $19 {[%emt 0:00:52]} 44. Qc8+ {[%emt 0:01:07]} Kg7 {[%emt 0:00:06]} 45. Qe8 {[%emt 0:00:46]} Qc5 {[%emt 0:07:53]} 46. Kh2 {[%emt 0:01:08]} h5 {[%emt 0:00:13]} 47. h4 {[%emt 0:00:49]} f5 {[%emt 0:04:04]} 48. b4 {[%emt 0:02:31]} Qd6 {[%emt 0:00:05]} 49. Qxb5 {[%emt 0:01:28]} Rxb4 {[%emt 0:00:26]} 50. Qa5 {[%emt 0:01:07]} Qe7 {[%emt 0:00:29]} 51. g3 {[%emt 0:05:24]} fxe4 {[%emt 0:00:21]} 52. Be2 {[%emt 0:00:00]} e3 {[%emt 0:00:36]} 53. Qa6 {[%emt 0:00:21]} Rb1 {[%emt 0:01:23]} 54. Qa5 {[%emt 0:00:35]} Qb7 {[%emt 0:01:43]} 55. Qxe5+ {[%emt 0:00:12]} Kh7 {[%emt 0:00:06]} 56. g4 {[%emt 0:00:27]} Qh1+ {[%emt 0:00:17]} 57. Kg3 {[%emt 0:00:03]} Rg1+ {[%emt 0:01:24]} 58. Kf4 {[%emt 0:00:01]} Qh2+ {[%emt 0:00:19]} 59. Ke4 {[%emt 0:00:01]} Rxg4+ {[%emt 0:07:03]} 0-1

[Event "6th Uppsala Young Champions 2019"]
[Site "Uppsala"]
[Date "2019.10.26"]
[Round "2.2"]
[White "Nilsson, Joakim"]
[Black "Papunidi, Matvey"]
[Result "0-1"]
[ECO "D30"]
[WhiteElo "2305"]
[BlackElo "2083"]
[Annotator "NA"]
[PlyCount "78"]
[EventDate "2019.10.25"]
[EventType "swiss"]
[EventCountry "SWE"]
[SourceTitle "playchess.com"]
[Source "ChessBase"]
[SourceQuality "1"]
[TimeControl "5400+30"]

{[%evp 13,78,-15,-23,-30,-20,32767,-20,-43,14,-24,-14,-88,-86,-70,-21,-15,3,18,39,-139,-138,-137,-149,-136,-135,-115,-117,-133,-130,-124,-132,-267,-283,-333,-320,-331,-327,-442,-485,32767,32767,32767,-281,32767,-222,-248,-207,-293,-277,-281,-279,-305,-300,-406,-413,32767,-556,-628,-608,-550,32767,-628,-743,-898,32767,32767,-1610]} 1. d4 {[%emt 0:00:00]} d5 {[%emt 0:00:00]} 2. c4 {[%emt 0:00:07]} c6 {[%emt 0:00:00]} 3. Nf3 {[%emt 0:00:06]} e6 {[%emt 0:00:00]} 4. g3 {[%emt 0:00:08]} dxc4 {[%emt 0:00:00]} 5. Bg2 {[%emt 0:00:09]} b5 {[%emt 0:00:39]} 6. O-O {[%emt 0:00:08]} Bb7 {[%emt 0:02:24]} 7. Qc2 {[%emt 0:00:22] D30: Queen's Gambit Declined: Systems without Nc3} (7. a4 a6 8. Nc3 Nf6 9. Ne5 Nd5 10. e4 Nxc3 11. bxc3 Nd7 12. f4 Be7 13. Ng4 O-O 14. e5 f5 15. exf6 Nxf6 16. Qe2 Qc8 17. Nxf6+ Bxf6 18. Ba3 c5 19. Bxc5 Re8 20. Bxb7 Qxb7 21. Qg2 {½-½ (62) Miton,K (2588)-Tomashevsky,E (2705) St Petersburg 2018}) 7... Nf6 {[%emt 0:01:09]} 8. b3 {[%emt 0:00:39]} cxb3 {[%emt 0:00:23]} 9. axb3 {[%emt 0:00:09]} Be7 {[%emt 0:05:36]} 10. Bd2 {[%emt 0:00:17]} b4 $146 {[%emt 0:10:01]} ({Predecessor:} 10... O-O 11. Ba5 Qc8 12. Rc1 Na6 13. Nc3 {½-½ (49) Nilsson,J (2191)-Kucuksari,K (2327) Uppsala 2018}) 11. Rc1 {[%emt 0:06:41]} O-O {[%emt 0:01:44]} 12. e3 {[%emt 0:04:30]} (12. Bg5 $11 {remains equal.}) 12... Nbd7 {[%emt 0:15:49]} 13. Ne1 {[%emt 0:02:18]} Qb6 {[%emt 0:03:12]} (13... a5 $17 14. Nd3 Ba6) 14. Nd3 {[%emt 0:03:23]} Rfc8 {[%emt 0:00:27]} 15. Nc5 $1 {[%emt 0:00:52]} a5 {[%emt 0:09:22]} 16. Be1 $2 {[%emt 0:06:49]} (16. Nxb7 $11 Qxb7 17. Bxc6) 16... Nxc5 {[%emt 0:02:00]} 17. dxc5 {[%emt 0:00:20]} Qc7 {[%emt 0:00:31]} 18. Nd2 {[%emt 0:12:59]} Nd7 {[%emt 0:01:15]} 19. Ne4 {[%emt 0:01:58]} f5 {[%emt 0:00:06]} 20. Nd6 {[%emt 0:01:40]} Bxd6 {[%emt 0:00:04]} 21. cxd6 {[%emt 0:00:07]} Qxd6 {[%emt 0:00:01]} 22. e4 {[%emt 0:01:50]} (22. f4 $17 {was called for.}) 22... c5 {[%emt 0:06:43]} 23. Bd2 {[%emt 0:06:56]} Bxe4 {[%emt 0:02:58]} 24. Bxe4 {[%emt 0:00:20]} fxe4 {[%emt 0:00:03]} 25. Qxe4 {[%emt 0:06:58]} Qd5 {[%emt 0:00:09]} 26. Re1 {[%emt 0:03:33]} Qxe4 {[%emt 0:04:13]} 27. Rxe4 {[%emt 0:00:49]} Ra6 {[%emt 0:00:50]} 28. Be3 {[%emt 0:02:09] [#]} Kf7 {[%emt 0:06:10]} (28... a4 $142 $1 29. bxa4 (29. Rxa4 Rxa4) 29... c4) 29. Rc4 {[%emt 0:00:36]} Ke7 {[%emt 0:02:27]} 30. Rd1 {[%emt 0:00:40]} a4 {[%emt 0:06:54]} 31. bxa4 {[%emt 0:00:29]} Rxa4 {[%emt 0:00:08]} 32. Bg5+ {[%emt 0:00:58]} Ke8 {[%emt 0:06:51]} 33. Rdc1 {[%emt 0:07:44]} Rca8 {[%emt 0:01:48]} 34. Be3 {[%emt 0:04:29]} b3 {[%emt 0:00:20]} 35. Rxa4 {[%emt 0:00:33]} Rxa4 {[%emt 0:00:05]} 36. Rb1 {[%emt 0:00:08]} c4 {[%emt 0:00:50]} 37. Kf1 {[%emt 0:00:28]} Ra2 {[%emt 0:00:49]} 38. Ke1 {[%emt 0:02:04]} Ne5 {[%emt 0:00:33]} 39. Kd1 {[%emt 0:00:51]} Nd3 $19 {[%emt 0:00:18]} 0-1

[Event "6th Uppsala Young Champions 2019"]
[Site "Uppsala"]
[Date "2019.10.26"]
[Round "2.3"]
[White "Nguyen, Gabriel"]
[Black "Kristensen, Bjarke Hautop"]
[Result "1/2-1/2"]
[ECO "D85"]
[WhiteElo "2071"]
[BlackElo "2223"]
[Annotator "ChessBase"]
[PlyCount "66"]
[EventDate "2019.10.25"]
[EventType "swiss"]
[EventCountry "SWE"]
[SourceTitle "playchess.com"]
[Source "ChessBase"]
[SourceQuality "1"]
[TimeControl "5400+30"]

1. d4 {[%emt 0:00:00]} Nf6 {[%emt 0:00:00]} 2. c4 {[%emt 0:00:00]} g6 {[%emt 0:00:00]} 3. Nc3 {[%emt 0:00:00]} d5 {[%emt 0:00:00]} 4. cxd5 {[%emt 0:07:49]} Nxd5 {[%emt 0:00:02]} 5. e4 {[%emt 0:00:04]} Nxc3 {[%emt 0:00:06]} 6. bxc3 {[%emt 0:00:03]} Bg7 {[%emt 0:00:06]} 7. Be3 {[%emt 0:00:04]} c5 {[%emt 0:00:24]} 8. Qd2 {[%emt 0:00:08]} cxd4 {[%emt 0:03:28]} 9. cxd4 {[%emt 0:00:51]} Nc6 {[%emt 0:00:01]} 10. Nf3 {[%emt 0:00:20]} Bg4 {[%emt 0:00:20]} 11. Rd1 {[%emt 0:01:01]} O-O {[%emt 0:00:41]} 12. Be2 {[%emt 0:04:14]} Qa5 {[%emt 0:04:15]} 13. O-O {[%emt 0:04:16]} Rac8 {[%emt 0:14:43]} 14. Qxa5 {[%emt 0:09:36]} Nxa5 {[%emt 0:00:05]} 15. Rc1 {[%emt 0:01:35]} a6 {[%emt 0:04:00]} 16. d5 {[%emt 0:12:27]} b5 {[%emt 0:00:29]} 17. Bc5 {[%emt 0:16:18]} Bb2 {[%emt 0:09:44]} 18. Rb1 {[%emt 0:03:01]} Rxc5 {[%emt 0:01:14]} 19. Rxb2 {[%emt 0:00:03]} Rfc8 {[%emt 0:04:18]} 20. h3 {[%emt 0:01:33]} Bxf3 {[%emt 0:00:34]} 21. gxf3 {[%emt 0:00:03]} Rc2 {[%emt 0:06:35]} 22. Rfb1 {[%emt 0:00:14]} Rxb2 {[%emt 0:02:37]} 23. Rxb2 {[%emt 0:00:16]} Rc1+ {[%emt 0:01:10]} 24. Kg2 {[%emt 0:00:05]} Nc4 {[%emt 0:00:03]} 25. Bxc4 {[%emt 0:00:46]} Rxc4 {[%emt 0:00:06]} 26. Kg3 {[%emt 0:00:51]} Kg7 {[%emt 0:00:48]} 27. Rd2 {[%emt 0:09:35]} a5 {[%emt 0:03:28]} 28. Kf4 {[%emt 0:00:23]} f6 {[%emt 0:02:29]} 29. Ke3 {[%emt 0:00:49]} Rc3+ {[%emt 0:09:32]} 30. Rd3 {[%emt 0:02:18]} Rc2 {[%emt 0:00:06]} 31. Rd2 {[%emt 0:07:23]} Rc3+ {[%emt 0:02:39]} 32. Rd3 {[%emt 0:00:06]} Rc2 {[%emt 0:00:05]} 33. Rd2 {[%emt 0:00:03]} Rc3+ {[%emt 0:32:22]} 1/2-1/2